bitfinex/quotes_SOLUSD_20260304
["timestamp","ask_amount","ask_price","bid_price","bid_amount"]
[1772619547103,11.06463962,90.378,90.295,4.3384472]
[1772619547104,4.18360005,90.349,90.295,4.3384472]
[1772619547395,4.18360005,90.329,90.287,27.6894111]
[1772619547609,4.18360005,90.329,90.297,4.3384472]
[1772619548786,15.25436437,90.328,90.297,4.3384472]
[1772619548986,4.18360005,90.327,90.292,11.07515096]
[1772619549304,4.18360005,90.327,90.298,11.0744424]
[1772619549597,11.07076432,90.328,90.298,15.4128896]
[1772619549784,11.07003965,90.334,90.301,4.3384472]
[1772619550412,4.18360005,90.333,90.298,11.0744424]
[1772619550897,4.18360005,90.333,90.3,4.4384472]
[1772619550898,11.07027409,90.332,90.3,4.4384472]
[1772619551129,4.18360005,90.331,90.3,4.4384472]
[1772619551283,4.18360005,90.331,90.3,0.1]
[1772619551481,4.18360005,90.329,90.3,0.1]
[1772619551688,4.18360005,90.323,90.275,4.3384472]
[1772619552001,4.18360005,90.323,90.268,38.77343022]
[1772619552002,4.18360005,90.319,90.268,11.07812292]
[1772619552192,4.18360005,90.319,90.268,15.41657012]
[1772619552584,4.18360005,90.319,90.269,4.3384472]
[1772619552796,4.18360005,90.319,90.268,11.07812292]
[1772619552797,4.18360005,90.317,90.271,4.3384472]
[1772619553783,15.254809,90.325,90.271,4.3384472]
[1772619553999,11.07057686,90.33,90.279,4.3384472]
[1772619554182,27.67254532,90.343,90.283,3.69383402]
[1772619554389,4.18360005,90.341,90.289,4.3384472]
[1772619554879,4.18360005,90.339,90.291,4.3384472]
[1772619555501,38.74252821,90.34,90.291,4.3384472]
[1772619555502,11.06929377,90.34,90.291,4.3384472]
[1772619555885,11.06819112,90.349,90.298,4.3384472]
[1772619556903,7.86402819,90.355,90.309,4.3384472]
[1772619557111,42.92012526,90.354,90.309,4.3384472]
[1772619557604,4.18360005,90.353,90.309,4.3384472]
[1772619558187,4.18360005,90.353,90.305,11.07358396]
[1772619558627,4.18360005,90.353,90.299,4.3384472]
[1772619558628,4.18360005,90.353,90.3,11.07419712]
[1772619558908,4.18360005,90.339,90.289,11.0755463]
[1772619559103,4.14176404,90.313,90.267,4.41168025]
[1772619560588,4.14176404,90.313,90.242,4.41168025]
[1772619560908,4.14176404,90.311,90.248,4.41168025]
[1772619562210,4.14176404,90.309,90.253,4.29264072]
[1772619562385,38.75539806,90.31,90.259,4.29264072]
[1772619563202,4.14176404,90.309,90.259,4.29264072]
[1772619564211,15.21498014,90.308,90.261,4.29264072]
[1772619564413,38.75625636,90.308,90.261,4.29264072]
[1772619564616,4.14176404,90.307,90.261,4.29264072]
[1772619567191,38.75625636,90.308,90.246,3.69383402]
[1772619567192,4.14176404,90.305,90.263,4.29264072]
[1772619567390,11.07346134,90.306,90.263,4.29264072]
[1772619567603,11.07346134,90.306,90.262,11.07885932]
[1772619567604,11.07088688,90.327,90.268,4.57696386]
[1772619567917,4.14176404,90.326,90.268,4.57696386]
[1772619569401,4.14176404,90.324,90.273,4.29264072]
[1772619570895,0.14216157,90.321,90.273,4.29264072]
[1772619571102,4.14176404,90.314,90.269,11.07800019]
[1772619572916,4.14176404,90.312,90.265,11.0784911]
[1772619573412,4.14176404,90.312,90.264,4.29264072]
[1772619573413,4.14176404,90.293,90.247,4.29264072]
[1772619573806,4.14176404,90.312,90.247,4.29264072]
[1772619574013,4.14176404,90.312,90.249,4.29264072]
[1772619574615,4.14176404,90.309,90.249,4.29264072]
[1772619574817,4.14176404,90.301,90.251,4.29264072]
[1772619578032,4.14176404,90.293,90.253,4.29264072]
[1772619579909,11.07309349,90.309,90.255,4.29264072]
[1772619580215,4.14176404,90.308,90.255,4.29264072]
[1772619580602,11.07309349,90.309,90.254,11.07984133]
[1772619580603,4.14176404,90.304,90.254,11.07984133]
[1772619581151,4.42608718,90.299,90.246,11.08082352]
[1772619581327,4.42608718,90.299,90.247,4.29264072]
[1772619582018,4.42608718,90.297,90.24,4.29264072]
[1772619583820,4.42608718,90.295,90.242,4.29264072]
[1772619586037,4.14176404,90.293,90.244,4.29264072]
[1772619588143,4.14176404,90.291,90.246,4.38143415]
[1772619588328,4.14176404,90.289,90.246,4.38143415]
[1772619589235,4.14176404,90.319,90.246,4.38143415]
[1772619589542,4.14176404,90.319,90.251,4.66575729]
[1772619590023,4.14176404,90.319,90.256,4.38143415]
[1772619590236,4.14176404,90.319,90.255,3.97815716]
[1772619590237,11.07088688,90.327,90.272,4.38143415]
[1772619591130,4.14176404,90.326,90.272,4.38143415]
[1772619592338,4.14176404,90.324,90.274,4.38143415]
[1772619595021,4.14176404,90.322,90.276,4.38143415]
[1772619595638,38.74982008,90.323,90.276,4.38143415]
[1772619595639,4.14176404,90.319,90.276,4.38143415]
[1772619597244,15.21366697,90.319,90.278,4.38143415]
[1772619598127,11.07190293,90.319,90.278,4.38143415]
[1772619598339,4.14176404,90.318,90.278,4.38143415]
[1772619598743,4.14176404,90.318,90.27,4.38143415]
[1772619599140,38.75239433,90.317,90.271,11.07775476]
[1772619599347,4.14176404,90.316,90.272,4.38143415]
[1772619600658,11.07211266,90.317,90.272,4.38143415]
[1772619600830,7.86402819,90.328,90.273,0.28432314]
[1772619601030,5.77067059,90.399,90.291,4.38143415]
[1772619601031,4.14176404,90.356,90.291,4.38143415]
[1772619601350,4.14176404,90.354,90.305,4.38143415]
[1772619601739,38.7360965,90.355,90.268,4.38143415]
[1772619601740,4.14176404,90.329,90.268,4.38143415]
[1772619601935,38.7360965,90.355,90.268,4.38143415]
[1772619601936,4.14176404,90.319,90.268,4.38143415]
[1772619602257,0.28432314,90.333,90.268,4.38143415]
[1772619602431,4.14176404,90.324,90.268,4.38143415]
[1772619603262,4.14176404,90.322,90.27,4.38143415]
[1772619605053,4.14176404,90.34,90.278,4.38143415]
[1772619605256,55.33671805,90.356,90.28,4.38143415]
[1772619605257,4.14176404,90.338,90.28,4.38143415]
[1772619605554,4.14176404,90.338,90.288,4.38143415]
[1772619605754,4.14176404,90.361,90.297,4.38143415]
[1772619606049,4.14176404,90.365,90.308,4.38143415]
[1772619606242,11.06757285,90.355,90.308,4.38143415]
[1772619607226,4.14176404,90.365,90.3,0.28432314]
[1772619607227,11.06685155,90.36,90.314,8.07526817]
[1772619607455,11.06685155,90.36,90.318,4.38143415]
[1772619607650,11.06525178,90.373,90.318,4.38143415]
[1772619607858,4.49792487,90.372,90.318,4.38143415]
[1772619608852,6.81523668,90.394,90.309,38.75582721]
[1772619608853,15.56085079,90.392,90.328,3.69383402]
[1772619609154,15.56085079,90.392,90.338,4.38143415]
[1772619609353,15.56085079,90.392,90.34,4.38143415]
[1772619609653,6.81213803,90.393,90.345,4.66575729]
[1772619609954,4.49792487,90.391,90.345,4.66575729]
[1772619610254,4.49792487,90.391,90.345,4.38143415]
[1772619610654,4.49792487,90.391,90.349,4.38143415]
[1772619610858,11.06292592,90.392,90.349,4.38143415]
[1772619611437,4.49792487,90.391,90.351,4.38143415]
[1772619613052,4.49792487,90.391,90.342,4.38143415]
[1772619613455,4.49792487,90.389,90.344,4.38143415]
[1772619613842,6.81213803,90.393,90.348,4.38143415]
[1772619614866,6.81213803,90.393,90.355,4.66575729]
[1772619615856,6.81213803,90.393,90.357,4.66575729]
[1772619616642,6.81213803,90.393,90.357,4.38143415]
[1772619616643,4.49792487,90.391,90.357,4.38143415]
[1772619616843,4.49792487,90.391,90.356,11.06733365]
[1772619617966,4.49792487,90.389,90.356,11.06733365]
[1772619619055,11.06341549,90.388,90.357,4.20869382]
[1772619619264,4.2731881,90.387,90.35,11.06805244]
[1772619619657,4.2731881,90.387,90.34,11.06929377]
[1772619619969,4.2731881,90.387,90.341,4.20869382]
[1772619620262,4.2731881,90.387,90.335,11.06990334]
[1772619621266,4.2731881,90.385,90.335,11.06990334]
[1772619621464,4.2731881,90.379,90.333,4.20869382]
[1772619621645,4.2731881,90.379,90.334,11.070029]
[1772619622143,4.2731881,90.379,90.329,11.07060412]
[1772619622553,4.2731881,90.379,90.329,15.14703714]
[1772619622753,4.2731881,90.379,90.33,4.07643302]
[1772619623564,4.49995427,90.377,90.332,4.07643302]
[1772619623758,4.49995427,90.377,90.327,4.07643302]
[1772619624670,4.49995427,90.375,90.329,4.07643302]
[1772619626254,6.81213803,90.393,90.328,38.74767513]
[1772619626255,11.06414994,90.382,90.338,4.07643302]
[1772619626664,11.06414994,90.382,90.331,3.69383402]
[1772619626665,11.06414994,90.382,90.34,4.07643302]
[1772619626967,15.56410421,90.382,90.34,4.07643302]
[1772619627167,4.49995427,90.381,90.34,4.07643302]
[1772619628871,11.06439477,90.38,90.342,4.07643302]
[1772619630760,4.49995427,90.381,90.342,4.07643302]
[1772619630971,15.56425621,90.381,90.344,4.07643302]
[1772619633179,15.56425621,90.381,90.346,4.07643302]
[1772619633367,4.49995427,90.38,90.346,4.07643302]
[1772619633575,4.49995427,90.379,90.327,4.07643302]
[1772619633771,4.49995427,90.369,90.327,4.07643302]
[1772619634963,11.06586402,90.368,90.328,11.07076432]
[1772619635278,4.49995427,90.367,90.328,11.07076432]
[1772619636376,4.49995427,90.365,90.328,11.07076432]
[1772619636574,4.49995427,90.394,90.329,4.07643302]
[1772619636783,5.04995042,90.38,90.329,4.07643302]
[1772619636967,94.02966911,90.397,90.329,4.07643302]
[1772619636968,4.49995427,90.369,90.329,4.07643302]
[1772619639079,15.56580113,90.369,90.331,4.07643302]
[1772619639671,4.49995427,90.368,90.331,4.07643302]
[1772619640287,11.06598647,90.367,90.333,4.07643302]
[1772619640983,11.06598647,90.367,90.332,11.07027409]
[1772619640984,4.49995427,90.378,90.336,4.36075616]
[1772619641204,4.49995427,90.392,90.336,4.07643302]
[1772619641367,4.49995427,90.389,90.338,4.07643302]
[1772619642267,4.49995427,90.387,90.34,4.07643302]
[1772619643991,4.49995427,90.359,90.32,4.07643302]
[1772619644174,4.49995427,90.359,90.311,4.07643302]
[1772619644485,4.49995427,90.359,90.278,18.58795465]
[1772619644486,4.49995427,90.329,90.29,11.07532934]
[1772619645393,4.49995427,90.329,90.29,15.15176236]
[1772619645971,4.49995427,90.329,90.29,11.07532934]
[1772619646170,4.49995427,90.329,90.291,4.07643302]
[1772619646376,4.49995427,90.327,90.292,11.07517831]
[1772619646588,4.49995427,90.327,90.292,15.15161133]
[1772619646793,4.49995427,90.327,90.293,4.07643302]
[1772619647092,15.56643059,90.363,90.302,4.07643302]
[1772619647299,4.49995427,90.368,90.326,4.07643302]
[1772619647596,11.0658056,90.369,90.309,4.07643302]
[1772619647597,4.49995427,90.359,90.309,4.07643302]
[1772619648383,4.16522132,90.357,90.311,4.31107411]
[1772619649182,4.16522132,90.368,90.325,0.28432314]
[1772619649489,4.16522132,90.368,90.314,4.82477569]
[1772619649490,4.16522132,90.367,90.316,4.31107411]
[1772619649809,4.16522132,90.367,90.318,4.31107411]
[1772619650478,5.04535099,90.36,90.318,15.38296314]
[1772619650793,4.16522132,90.359,90.318,15.38296314]
[1772619651887,4.16522132,90.359,90.308,4.31107411]
[1772619652487,4.16522132,90.357,90.31,4.31107411]
[1772619653204,38.73481041,90.358,90.304,11.07363146]
[1772619653205,4.16522132,90.349,90.304,11.07363146]
[1772619653584,4.16522132,90.349,90.305,4.31107411]
[1772619654005,11.06708869,90.358,90.307,4.31107411]
[1772619654197,38.73481041,90.358,90.307,4.31107411]
[1772619654399,4.16522132,90.357,90.307,4.31107411]
[1772619654710,4.16522132,90.367,90.32,5.10909883]
[1772619654904,4.16522132,90.367,90.327,4.31107411]
[1772619656682,4.16522132,90.365,90.316,4.31107411]
[1772619656894,4.16522132,90.359,90.316,4.31107411]
[1772619657299,4.16522132,90.359,90.317,4.31107411]
[1772619657811,11.06610893,90.366,90.317,4.31107411]
[1772619658007,11.06610893,90.366,90.327,4.31107411]
[1772619658815,11.06488448,90.376,90.329,4.31107411]
[1772619659185,11.06488448,90.376,90.334,0.28432314]
[1772619659408,11.06488448,90.376,90.337,4.31107411]
[1772619661100,6.76387198,90.38,90.35,4.31107411]
[1772619661291,4.16522132,90.397,90.357,4.31107411]
[1772619661707,4.16522132,90.397,90.345,3.69383402]
[1772619661885,4.16522132,90.397,90.342,3.97815716]
[1772619662085,4.16522132,90.397,90.347,4.31107411]
[1772619662896,0.2,90.4,90.351,4.31107411]
[1772619663106,0.2,90.4,90.323,1.10713771]
[1772619663107,0.2,90.4,90.367,4.31107411]
[1772619663305,4.16522132,90.409,90.355,4.31107411]
[1772619663502,4.16522132,90.409,90.357,4.31107411]
[1772619664882,4.16522132,90.407,90.359,4.31107411]
[1772619665089,11.06096805,90.408,90.353,11.06769931]
[1772619665090,4.16522132,90.399,90.353,11.06769931]
[1772619665585,4.16522132,90.399,90.32,12.2716954]
[1772619665586,4.16522132,90.379,90.329,11.0706118]
[1772619665788,4.16522132,90.379,90.33,4.31107411]
[1772619666304,4.16522132,90.379,90.336,4.31107411]
[1772619666902,4.16522132,90.377,90.338,4.31107411]
[1772619667290,4.16522132,90.377,90.337,11.06966137]
[1772619668307,4.16522132,90.377,90.318,27.67996995]
[1772619668308,4.16522132,90.369,90.325,11.07108571]
[1772619668993,4.16522132,90.367,90.32,4.31107411]
[1772619670411,4.16522132,90.365,90.322,4.31107411]
[1772619671511,5.04535099,90.36,90.313,4.31107411]
[1772619671694,4.16522132,90.359,90.313,4.31107411]
[1772619672408,4.16522132,90.357,90.315,4.31107411]
[1772619672815,4.16522132,90.357,90.314,11.07248045]
[1772619672816,11.06708869,90.358,90.317,4.31107411]
[1772619674618,4.16522132,90.359,90.306,4.31107411]
[1772619675510,4.16522132,90.349,90.308,4.31107411]
[1772619675711,4.16522132,90.368,90.317,4.31107411]
[1772619676011,4.16522132,90.359,90.317,4.31107411]
[1772619676203,4.16522132,90.359,90.308,4.31107411]
[1772619677619,4.16522132,90.359,90.313,4.59539725]
[1772619677818,4.16522132,90.378,90.313,4.59539725]
[1772619678733,4.16522132,90.378,90.331,4.46412317]
[1772619679021,4.16522132,90.378,90.33,3.69383402]
[1772619679022,4.16522132,90.378,90.337,4.46412317]
[1772619679225,11.06400216,90.384,90.337,4.46412317]
[1772619679731,11.06400216,90.384,90.339,4.46412317]
[1772619679909,4.0687337,90.383,90.339,4.46412317]
[1772619680512,4.0687337,90.359,90.312,4.46412317]
[1772619681805,4.25840325,90.357,90.312,4.46412317]
[1772619682006,4.25840325,90.357,90.313,11.07260305]
[1772619682426,4.25840325,90.357,90.314,4.39660684]
[1772619682720,4.25840325,90.357,90.316,4.39660684]
[1772619683139,4.25840325,90.378,90.32,4.68092998]
[1772619683803,4.25840325,90.376,90.325,4.68092998]
[1772619685319,4.25840325,90.374,90.327,4.39660684]
[1772619686321,4.25840325,90.369,90.319,4.39660684]
[1772619687306,4.25840325,90.367,90.324,4.39660684]
[1772619688227,4.25840325,90.367,90.316,0.28432314]
[1772619688427,4.25840325,90.359,90.311,11.07284826]
[1772619689410,5.04535099,90.36,90.311,4.39660684]
[1772619689411,4.25840325,90.357,90.311,4.39660684]
[1772619690423,4.25840325,90.379,90.332,0.28432314]
[1772619690620,4.25840325,90.379,90.337,4.39660684]
[1772619690822,4.25840325,90.399,90.344,4.68092998]
[1772619691321,38.71467285,90.405,90.344,4.68092998]
[1772619691322,11.06219164,90.398,90.345,38.74038407]
[1772619691528,4.25840325,90.397,90.346,4.68092998]
[1772619692914,11.06190186,90.401,90.353,4.39660684]
[1772619693134,4.25840325,90.414,90.364,4.39660684]
[1772619693320,4.25840325,90.414,90.332,1.1070274]
[1772619693321,4.25840325,90.399,90.351,8.09044086]
[1772619693526,4.25840325,90.399,90.347,11.06843614]
[1772619693826,4.25840325,90.389,90.331,4.39660684]
[1772619694031,4.25840325,90.389,90.333,4.39660684]
[1772619695006,4.25840325,90.387,90.335,4.39660684]
[1772619695212,4.25840325,90.379,90.335,4.39660684]
[1772619695427,4.25840325,90.369,90.329,11.07055463]
[1772619696115,4.25840325,90.369,90.329,15.46716147]
[1772619696508,4.25840325,90.359,90.329,11.07055463]
[1772619696734,4.25840325,90.359,90.313,11.07260305]
[1772619696914,38.73481041,90.358,90.313,11.07260305]
[1772619697119,4.25840325,90.357,90.313,11.07260305]
[1772619697318,4.25840325,90.357,90.314,4.39660684]
[1772619699226,4.25840325,90.355,90.315,15.46896469]
[1772619699527,4.25840325,90.355,90.31,11.07289193]
[1772619700230,4.25840325,90.355,90.311,4.39660684]
[1772619700428,4.25840325,90.355,90.277,18.58795465]
[1772619700429,4.25840325,90.329,90.286,4.39660684]
[1772619701216,4.25840325,90.327,90.296,11.07468769]
[1772619701638,4.25840325,90.327,90.291,11.07526394]
[1772619701816,4.25840325,90.327,90.295,74.27781592]
[1772619702419,4.25840325,90.327,90.295,78.67442276]
[1772619702942,4.25840325,90.327,90.296,4.39660684]
[1772619703129,11.07100945,90.326,90.297,11.07456504]
[1772619703328,4.25840325,90.325,90.297,11.07456504]
[1772619703929,11.07100945,90.326,90.298,4.39660684]
[1772619705041,15.3294127,90.326,90.298,4.39660684]
[1772619705330,4.25840325,90.325,90.298,4.39660684]
[1772619705528,4.25840325,90.325,90.295,63.20306834]
[1772619707035,4.25840325,90.323,90.295,63.20306834]
[1772619709124,11.07149974,90.322,90.295,63.20306834]
[1772619709332,4.26980961,90.321,90.295,63.20306834]
[1772619710139,4.26980961,90.321,90.296,4.10475786]
[1772619710334,11.07149974,90.322,90.296,11.07468769]
[1772619710635,27.67505054,90.335,90.296,11.07468769]
[1772619710636,4.26980961,90.326,90.296,11.07468769]
[1772619711343,4.26980961,90.324,90.295,63.20306834]
[1772619711923,4.26980961,90.324,90.295,67.3078262]
[1772619712732,4.26980961,90.324,90.295,63.20306834]
[1772619713242,5.04406661,90.33,90.295,63.20306834]
[1772619713243,38.74982008,90.323,90.295,63.20306834]
[1772619713424,4.26980961,90.319,90.295,63.20306834]
[1772619714943,4.26980961,90.317,90.295,63.20306834]
[1772619715140,4.26980961,90.317,90.283,4.10475786]
[1772619716133,4.26980961,90.315,90.283,4.10475786]
[1772619716445,6.77537967,90.35,90.256,3.69383402]
[1772619716446,4.26980961,90.325,90.285,4.10475786]
[1772619716945,4.26980961,90.323,90.285,4.10475786]
[1772619718149,4.26980961,90.321,90.286,15.18067217]
[1772619718344,4.26980961,90.321,90.286,11.07591431]
[1772619718543,4.26980961,90.319,90.286,11.07591431]
[1772619719044,4.26980961,90.319,90.286,15.18067217]
[1772619719850,4.26980961,90.319,90.287,4.10475786]
[1772619720440,11.07199007,90.318,90.289,4.10475786]
[1772619720642,15.34179968,90.318,90.289,4.10475786]
[1772619721049,11.07199007,90.318,90.289,4.10475786]
[1772619721239,4.26980961,90.317,90.289,4.10475786]
[1772619722552,27.67813648,90.324,90.289,4.10475786]
[1772619722553,4.26980961,90.315,90.289,4.10475786]
[1772619725346,4.26980961,90.335,90.291,4.10475786]
[1772619725848,4.26980961,90.343,90.291,4.10475786]
[1772619726155,4.26980961,90.343,90.297,4.10475786]
[1772619726651,4.26980961,90.339,90.297,4.10475786]
[1772619726860,4.26980961,90.339,90.285,4.10475786]
[1772619727046,4.26980961,90.329,90.285,4.10475786]
[1772619727243,4.26980961,90.317,90.285,4.10475786]
[1772619727956,2.19665462,90.31,90.241,38.78503119]
[1772619728149,2.19665462,90.31,90.244,4.82477569]
[1772619728339,38.75196526,90.318,90.248,0.28432314]
[1772619728540,38.75196526,90.318,90.247,4.82477569]
[1772619728762,4.26980961,90.309,90.274,4.10475786]
[1772619729959,11.0732161,90.308,90.276,4.10475786]
[1772619730456,11.0705192,90.33,90.284,4.10475786]
[1772619730660,11.0705192,90.33,90.286,4.10475786]
[1772619731160,11.07005155,90.334,90.294,0.28432314]
[1772619731474,4.26980961,90.37,90.313,4.10475786]
[1772619731642,4.26980961,90.37,90.295,4.80131505]
[1772619731643,11.06398123,90.384,90.335,4.10475786]
[1772619731837,11.06398123,90.384,90.338,38.74338594]
[1772619732042,4.26980961,90.387,90.346,0.28432314]
[1772619732244,4.26980961,90.387,90.338,38.74338594]
[1772619732245,15.33343774,90.387,90.347,4.10475786]
[1772619732466,11.06362813,90.387,90.347,4.10475786]
[1772619733043,6.81651002,90.392,90.347,4.10475786]
[1772619733244,4.26980961,90.417,90.364,0.28432314]
[1772619733445,0.2,90.42,90.374,3.30950054]
[1772619733643,0.2,90.42,90.386,3.0251774]
[1772619734047,11.05699923,90.441,90.396,3.0251774]
[1772619734250,0.2,90.45,90.406,3.0251774]
[1772619734446,0.2,90.45,90.416,3.0251774]
[1772619734766,0.2,90.45,90.407,0.28432314]
[1772619734767,1e-08,90.45,90.421,0.28432314]
[1772619735059,32.87457302,90.49,90.406,3.30950054]
[1772619735060,4.26980961,90.459,90.406,3.30950054]
[1772619735265,4.26980961,90.459,90.406,3.0251774]
[1772619735971,4.26980961,90.457,90.407,14.0862678]
[1772619736270,4.26980961,90.457,90.41,3.0251774]
[1772619736564,4.26980961,90.457,90.416,3.0251774]
[1772619736770,4.26980961,90.457,90.393,3.0251774]
[1772619736968,4.26980961,90.409,90.359,11.06696621]
[1772619738266,4.26662961,90.389,90.358,10.86397853]
[1772619738851,4.26662961,90.379,90.358,10.86397853]
[1772619739148,4.26662961,90.379,90.334,3.69383402]
[1772619739467,4.26662961,90.389,90.345,3.0251774]
[1772619739668,4.26662961,90.389,90.347,3.0251774]
[1772619740178,4.26662961,90.387,90.349,3.0251774]
[1772619740871,4.26662961,90.387,90.348,11.06831363]
[1772619741470,4.26662961,90.387,90.349,3.0251774]
[1772619741668,4.26662961,90.387,90.348,11.06831363]
[1772619741868,4.26662961,90.387,90.341,11.06907675]
[1772619742369,4.41667385,90.385,90.341,11.06907675]
[1772619743877,9.09055137,90.472,90.33,27.6762363]
[1772619743878,4.41667385,90.4,90.346,3.0251774]
[1772619744066,4.41667385,90.399,90.346,3.0251774]
[1772619745558,4.41667385,90.399,90.337,0.28432314]
[1772619745559,4.41667385,90.399,90.337,3.0251774]
[1772619745765,4.41667385,90.389,90.337,3.0251774]
[1772619745965,4.41667385,90.387,90.339,3.0251774]
[1772619747778,4.41667385,90.403,90.347,3.0251774]
[1772619747964,4.41667385,90.401,90.349,3.0251774]
[1772619748768,4.41667385,90.401,90.348,38.7390977]
[1772619748769,4.41667385,90.401,90.357,3.0251774]
[1772619749576,4.41667385,90.389,90.338,3.69383402]
[1772619749780,4.41667385,90.369,90.317,3.0251774]
[1772619749970,4.41667385,90.367,90.321,11.07153162]
[1772619750174,4.41667385,90.367,90.322,3.0251774]
[1772619750679,4.41667385,90.367,90.321,11.07153162]
[1772619751067,4.41667385,90.367,90.316,3.0251774]
[1772619751460,38.73052407,90.368,90.297,27.68611994]
[1772619751461,4.41667385,90.359,90.304,0.14216157]
[1772619751663,38.73052407,90.368,90.303,11.07382921]
[1772619751664,4.41667385,90.349,90.303,11.07382921]
[1772619752477,4.41667385,90.347,90.304,3.0251774]
[1772619752980,4.41667385,90.347,90.303,11.07382921]
[1772619753881,11.06750836,90.355,90.307,3.0251774]
[1772619754387,11.06690932,90.36,90.312,3.30950054]
[1772619754976,11.06500691,90.375,90.312,3.0251774]
[1772619755180,4.41667385,90.359,90.309,3.0251774]
[1772619756684,4.41667385,90.359,90.308,38.75625636]
[1772619756685,4.41667385,90.357,90.311,3.0251774]
[1772619757492,4.41667385,90.357,90.317,3.0251774]
[1772619757988,4.41667385,90.357,90.31,11.07297087]
[1772619758170,4.41667385,90.357,90.31,14.09814827]
[1772619758370,4.41667385,90.357,90.311,3.0251774]
[1772619758780,4.41667385,90.355,90.313,3.0251774]
[1772619760983,4.41667385,90.353,90.314,11.07248045]
[1772619761387,4.41667385,90.353,90.315,3.0251774]
[1772619761790,4.41667385,90.353,90.314,11.07248045]
[1772619761990,4.41667385,90.349,90.308,11.07309385]
[1772619762973,4.41667385,90.347,90.308,11.07309385]
[1772619765298,4.41667385,90.345,90.304,11.07370659]
[1772619766110,4.41667385,90.345,90.305,3.0251774]
[1772619766298,11.06782362,90.352,90.307,3.0251774]
[1772619766979,15.48449747,90.352,90.307,3.0251774]
[1772619767175,4.41667385,90.351,90.307,3.0251774]
[1772619767381,4.41667385,90.351,90.306,0.28432314]
[1772619767382,4.41667385,90.369,90.309,3.0251774]
[1772619767873,4.41667385,90.349,90.303,11.07382921]
[1772619769397,4.3416281,90.347,90.304,3.0251774]
[1772619770498,4.3416281,90.347,90.306,3.0251774]
[1772619772287,4.3416281,90.355,90.316,3.0251774]
[1772619772794,11.06574157,90.369,90.325,0.28432314]
[1772619772993,11.06574157,90.369,90.314,3.69383402]
[1772619772994,4.3416281,90.391,90.335,5.10909883]
[1772619773303,4.3416281,90.391,90.336,3.0251774]
[1772619774105,11.0631707,90.39,90.343,3.0251774]
[1772619774291,11.0631707,90.39,90.347,3.0251774]
[1772619774803,4.3416281,90.389,90.337,38.74381481]
[1772619775000,4.3416281,90.389,90.338,3.0251774]
[1772619776108,4.3416281,90.387,90.34,3.0251774]
[1772619777912,4.3416281,90.387,90.339,11.0694163]
[1772619778288,4.3416281,90.385,90.333,3.0251774]
[1772619780398,4.3416281,90.383,90.332,11.07027409]
[1772619780800,4.3416281,90.381,90.332,11.07027409]
[1772619781801,4.3416281,90.379,90.332,3.0251774]
[1772619784017,15.40626772,90.378,90.336,3.0251774]
[1772619784504,11.06463962,90.378,90.336,3.0251774]
[1772619785415,4.3416281,90.39,90.338,3.0251774]
[1772619787416,4.3416281,90.388,90.34,3.0251774]
[1772619788008,4.3416281,90.396,90.346,3.0251774]
[1772619788224,4.3416281,90.391,90.346,3.0251774]
[1772619790323,4.3416281,90.389,90.348,3.0251774]
[1772619791118,4.3416281,90.389,90.347,11.06843614]
[1772619791503,4.3416281,90.389,90.341,11.0691554]
[1772619792209,38.72195423,90.388,90.341,11.0691554]
[1772619792403,4.3416281,90.387,90.341,11.0691554]
[1772619792927,4.3416281,90.387,90.313,12.27974556]
[1772619792928,4.3416281,90.359,90.302,13.88915593]
[1772619793110,4.3416281,90.349,90.302,21.93791971]
[1772619793308,4.3416281,90.329,90.263,3.0251774]
[1772619793512,3.69383402,90.355,90.263,3.0251774]
[1772619793513,4.3416281,90.319,90.264,11.07861384]
[1772619794125,4.3416281,90.319,90.264,14.10379124]
[1772619794429,4.3416281,90.317,90.267,3.0251774]
[1772619795506,11.07223526,90.316,90.268,11.07812292]
[1772619795712,4.3416281,90.315,90.269,3.0251774]
[1772619797629,11.07248045,90.314,90.27,11.07787747]
[1772619797827,4.3416281,90.313,90.271,3.0251774]
[1772619798430,4.3416281,90.313,90.27,11.07787747]
[1772619798734,4.3416281,90.313,90.247,4.82477569]
[1772619798735,4.19761428,90.289,90.232,11.08245143]
[1772619798913,4.19761428,90.279,90.225,3.0251774]
[1772619799110,94.11608387,90.314,90.214,4.26358503]
[1772619799111,4.19761428,90.269,90.214,4.26358503]
[1772619799314,4.19761428,90.259,90.214,4.26358503]
[1772619799922,4.19761428,90.257,90.214,4.26358503]
[1772619800321,4.19761428,90.257,90.216,4.26358503]
[1772619801616,4.19761428,90.255,90.207,4.26358503]
[1772619802526,4.09017278,90.239,90.168,4.42617903]
[1772619802714,4.09017278,90.229,90.178,4.70194103]
[1772619803634,5.04024244,90.23,90.178,4.70194103]
[1772619803635,4.09017278,90.227,90.187,4.42617903]
[1772619804012,4.09017278,90.227,90.178,0.275762]
[1772619804640,5.04024244,90.22,90.178,0.275762]
[1772619804936,4.09017278,90.219,90.178,0.275762]
[1772619805139,38.79061931,90.228,90.178,0.275762]
[1772619805140,4.09017278,90.209,90.178,1e-08]
[1772619805439,4.09017278,90.199,90.178,1e-08]
[1772619805813,38.79061931,90.228,90.178,1e-08]
[1772619805814,4.09017278,90.197,90.178,1e-08]
[1772619806414,4.09017278,90.197,90.126,4.82477569]
[1772619806415,4.09017278,90.197,90.145,4.42617903]